[Event "European Online Club-ch-I 2021"]
[Site "Online"]
[Date "2021.03.27"]
[Round "3.10"]
[White "Bilquez, Romain"]
[Black "Muradli, Mahammad"]
[Result "1-0"]
[ECO "C41"]
[WhiteElo "2276"]
[BlackElo "2449"]
[Annotator "NA"]
[PlyCount "207"]
[EventDate "2021.03.27"]
[EventType "team-tourn"]
[EventCountry "NET"]
[SourceTitle "playchess.com"]
[Source "ChessBase"]
[SourceQuality "1"]
[TimeControl "900+5"]

1. e4 {[%emt 0:00:00]} d6 {[%emt 0:00:08]} 2. d4 {[%emt 0:00:03]} Nf6 {[%emt 0:00:01]} 3. Nc3 {[%emt 0:00:01]} e5 {[%emt 0:00:06]} 4. Nf3 {[%emt 0:00:07]} exd4 {[%emt 0:00:01]} 5. Nxd4 {[%emt 0:00:02]} Be7 {[%emt 0:00:02]} 6. Be2 {[%emt 0:00:06]} O-O {[%emt 0:00:02]} 7. O-O {[%emt 0:00:01]} Re8 {[%emt 0:00:01]} 8. Re1 {[%emt 0:00:12]} Nc6 {[%emt 0:00:29]} 9. Nxc6 {[%emt 0:01:04]} bxc6 {[%emt 0:00:02]} 10. b3 {[%emt 0:00:36]} Nd7 {[%emt 0:00:08]} 11. Bb2 {[%emt 0:00:03]} Bf6 {[%emt 0:00:01]} 12. Bf1 {[%emt 0:01:00]} Nc5 {[%emt 0:00:15]} 13. f3 {[%emt 0:00:28]} Be6 {[%emt 0:00:25]} 14. Rb1 {[%emt 0:00:32]} a5 {[%emt 0:00:08]} 15. Ne2 {[%emt 0:00:10]} Bxb2 {[%emt 0:00:13]} 16. Rxb2 {[%emt 0:00:00]} a4 {[%emt 0:00:01]} 17. Qd4 {[%emt 0:00:37]} Qb8 {[%emt 0:00:32]} 18. Nc3 {[%emt 0:00:46]} Qb6 {[%emt 0:00:41]} 19. Rbb1 {[%emt 0:00:48]} a3 {[%emt 0:00:21]} 20. Red1 {[%emt 0:00:47]} f6 {[%emt 0:00:49]} 21. Kh1 {[%emt 0:00:29]} Kh8 {[%emt 0:01:38]} 22. Bc4 {[%emt 0:00:42]} Bxc4 {[%emt 0:00:23]} 23. Qxc4 {[%emt 0:00:00]} Reb8 {[%emt 0:02:45]} 24. Ne2 {[%emt 0:01:06]} Qa6 {[%emt 0:00:57]} 25. Qxa6 {[%emt 0:00:27]} Nxa6 {[%emt 0:00:03]} 26. c3 {[%emt 0:00:17]} Rb6 {[%emt 0:00:15]} 27. Nd4 {[%emt 0:00:15]} Kg8 {[%emt 0:00:23]} 28. Nc2 {[%emt 0:00:09]} Nb8 {[%emt 0:00:13]} 29. Kg1 {[%emt 0:00:10]} Nd7 {[%emt 0:00:02]} 30. Kf2 {[%emt 0:00:08]} Kf7 {[%emt 0:00:04]} 31. Ke3 {[%emt 0:00:10]} h5 {[%emt 0:00:04]} 32. Rd2 {[%emt 0:00:15]} c5 {[%emt 0:00:16]} 33. c4 {[%emt 0:00:12]} Ne5 {[%emt 0:00:03]} 34. Rbd1 {[%emt 0:00:04]} h4 {[%emt 0:00:28]} 35. g3 {[%emt 0:00:15]} Rbb8 {[%emt 0:00:27]} 36. f4 {[%emt 0:01:05]} Nc6 {[%emt 0:00:23]} 37. Kf3 {[%emt 0:00:03]} hxg3 {[%emt 0:00:16]} 38. hxg3 {[%emt 0:00:01]} Re8 {[%emt 0:00:12]} 39. Rh1 {[%emt 0:00:14]} Re7 {[%emt 0:00:19]} 40. g4 {[%emt 0:01:16]} Rae8 {[%emt 0:00:21]} 41. Re2 {[%emt 0:00:02]} Kg8 {[%emt 0:01:25]} 42. Rh5 {[%emt 0:00:29]} Kf7 {[%emt 0:01:11]} 43. Rh7 {[%emt 0:00:27]} Ra8 {[%emt 0:00:31]} 44. Rg2 {[%emt 0:00:17]} Kg6 {[%emt 0:00:30]} 45. Rh4 {[%emt 0:00:22]} Rae8 {[%emt 0:00:40]} 46. f5+ {[%emt 0:00:33]} Kf7 {[%emt 0:00:05]} 47. g5 {[%emt 0:00:02]} fxg5 {[%emt 0:00:02]} 48. Rxg5 {[%emt 0:00:08]} Rb8 {[%emt 0:00:08]} 49. Rh7 {[%emt 0:00:44]} Kf6 {[%emt 0:00:08]} 50. Rg6+ {[%emt 0:00:08]} Ke5 {[%emt 0:00:07]} 51. Rgxg7 {[%emt 0:00:02]} Rxg7 {[%emt 0:00:08]} 52. Rxg7 {[%emt 0:00:00]} Rb7 {[%emt 0:00:17]} 53. Ke3 {[%emt 0:00:18]} Nd4 {[%emt 0:00:06]} 54. Nxd4 {[%emt 0:00:13]} cxd4+ {[%emt 0:00:01]} 55. Kd3 {[%emt 0:00:00]} Kf6 {[%emt 0:00:02]} 56. Rg6+ {[%emt 0:00:02]} Ke5 {[%emt 0:00:04]} 57. Re6+ {[%emt 0:00:01]} Kf4 {[%emt 0:00:01]} 58. Kxd4 {[%emt 0:00:01]} Rxb3 {[%emt 0:00:02]} 59. f6 {[%emt 0:00:22]} Kg5 {[%emt 0:00:16]} 60. f7 {[%emt 0:00:06]} Rf3 {[%emt 0:00:01]} 61. Re7 {[%emt 0:00:01]} c6 {[%emt 0:00:05]} 62. e5 {[%emt 0:00:40]} dxe5+ {[%emt 0:00:01]} 63. Kxe5 {[%emt 0:00:07]} Kg6 {[%emt 0:00:03]} 64. Kd6 {[%emt 0:00:04]} Kg7 {[%emt 0:00:02]} 65. Kxc6 {[%emt 0:00:12]} Rf2 {[%emt 0:00:03]} 66. c5 {[%emt 0:00:13]} Rxa2 {[%emt 0:00:04]} 67. Ra7 {[%emt 0:00:01]} Ra1 {[%emt 0:00:03]} 68. Kc7 {[%emt 0:00:06]} Kxf7 {[%emt 0:00:03]} 69. c6 {[%emt 0:00:03]} a2 {[%emt 0:00:02]} 70. Kc8+ {[%emt 0:00:07]} Ke6 {[%emt 0:00:18]} 71. c7 {[%emt 0:00:01]} Ke7 {[%emt 0:00:11]} 72. Ra3 {[%emt 0:00:06]} Kf7 {[%emt 0:00:08]} 73. Ra6 {[%emt 0:00:14]} Ke7 {[%emt 0:00:03]} 74. Ra7 {[%emt 0:00:03]} Kf6 {[%emt 0:00:12]} 75. Ra3 {[%emt 0:00:05]} Ke7 {[%emt 0:00:01]} 76. Re3+ {[%emt 0:00:03]} Kf7 {[%emt 0:00:01]} 77. Re2 {[%emt 0:00:02]} Kf6 {[%emt 0:00:04]} 78. Rd2 {[%emt 0:00:03]} Ke7 {[%emt 0:00:02]} 79. Re2+ {[%emt 0:00:02]} Kf7 {[%emt 0:00:02]} 80. Rb2 {[%emt 0:00:04]} Ke7 {[%emt 0:00:07]} 81. Rf2 {[%emt 0:00:12]} Ke8 {[%emt 0:00:12]} 82. Rd2 {[%emt 0:00:09]} Ke7 {[%emt 0:00:01]} 83. Re2+ {[%emt 0:00:05]} Kf7 {[%emt 0:00:02]} 84. Rf2+ {[%emt 0:00:02]} Ke7 {[%emt 0:00:01]} 85. Rh2 {[%emt 0:00:05]} Kf7 {[%emt 0:00:07]} 86. Re2 {[%emt 0:00:06]} Kf6 {[%emt 0:00:02]} 87. Rb2 {[%emt 0:00:10]} Ke7 {[%emt 0:00:04]} 88. Rd2 {[%emt 0:00:03]} Kf7 {[%emt 0:00:05]} 89. Kd8 {[%emt 0:00:07]} Re1 {[%emt 0:00:24]} 90. Rxa2 {[%emt 0:00:02]} Rd1+ {[%emt 0:00:02]} 91. Kc8 {[%emt 0:00:02]} Ke7 {[%emt 0:00:03]} 92. Re2+ {[%emt 0:00:04]} Kd6 {[%emt 0:00:02]} 93. Rh2 {[%emt 0:00:09]} Rb1 {[%emt 0:00:09]} 94. Rh6+ {[%emt 0:00:01]} Ke7 {[%emt 0:00:02]} 95. Rh3 {[%emt 0:00:05]} Ke8 {[%emt 0:00:05]} 96. Re3+ {[%emt 0:00:03]} Kf7 {[%emt 0:00:02]} 97. Re5 {[%emt 0:00:01]} Kf6 {[%emt 0:00:03]} 98. Re2 {[%emt 0:00:01]} Kf7 {[%emt 0:00:02]} 99. Re3 {[%emt 0:00:04]} Rb2 {[%emt 0:00:08]} 100. Re4 {[%emt 0:00:03]} Rb1 {[%emt 0:00:07]} 101. Kd7 {[%emt 0:00:06]} Rd1+ {[%emt 0:00:02]} 102. Kc6 {[%emt 0:00:02]} Rc1+ {[%emt 0:00:01]} 103. Kd6 {[%emt 0:00:01]} Rc2 {[%emt 0:00:03]} 104. Re5 {[%emt 0:00:07]} 1-0

[Event "European Online Club-ch-I 2021"]
[Site "Online"]
[Date "2021.03.27"]
[Round "3.11"]
[White "Shahaliyev, Ismayil"]
[Black "Martsynovskaya, Marina"]
[Result "1-0"]
[ECO "C73"]
[WhiteElo "2413"]
[BlackElo "2046"]
[Annotator "NA"]
[PlyCount "51"]
[EventDate "2021.03.27"]
[EventType "team-tourn"]
[EventCountry "NET"]
[SourceTitle "playchess.com"]
[Source "ChessBase"]
[SourceQuality "1"]
[TimeControl "900+5"]

1. e4 {[%emt 0:00:00]} e5 {[%emt 0:00:04]} 2. Nf3 {[%emt 0:00:06]} Nc6 {[%emt 0:00:03]} 3. Bb5 {[%emt 0:00:03]} a6 {[%emt 0:00:03]} 4. Ba4 {[%emt 0:00:02]} d6 {[%emt 0:00:02]} 5. Bxc6+ {[%emt 0:01:04]} bxc6 {[%emt 0:00:03]} 6. d4 {[%emt 0:00:02]} exd4 {[%emt 0:00:07]} 7. Qxd4 {[%emt 0:00:01]} c5 {[%emt 0:00:48]} 8. Qd3 {[%emt 0:00:08]} Ne7 {[%emt 0:00:43]} 9. Bg5 {[%emt 0:00:12]} h6 {[%emt 0:00:26]} 10. Bh4 {[%emt 0:00:05]} Be6 {[%emt 0:00:12]} 11. Nc3 {[%emt 0:00:11]} Qd7 {[%emt 0:00:10]} 12. O-O {[%emt 0:00:23]} g5 {[%emt 0:01:05]} 13. Bg3 {[%emt 0:00:03]} f5 {[%emt 0:00:46]} 14. exf5 {[%emt 0:00:22]} Nxf5 {[%emt 0:01:03]} 15. Rfe1 {[%emt 0:00:12]} Kf7 {[%emt 0:00:10]} 16. Rxe6 {[%emt 0:01:36]} Qxe6 {[%emt 0:00:03]} 17. Re1 {[%emt 0:00:04]} Qxe1+ {[%emt 0:03:06]} 18. Nxe1 {[%emt 0:00:04]} Nd4 {[%emt 0:00:02]} 19. Nf3 {[%emt 0:01:07]} Re8 {[%emt 0:00:12]} 20. h4 {[%emt 0:00:24]} Bg7 {[%emt 0:00:23]} 21. Nxd4 {[%emt 0:01:25]} Bxd4 {[%emt 0:01:17]} 22. Qf5+ {[%emt 0:00:03]} Bf6 {[%emt 0:03:25]} 23. Nd5 {[%emt 0:00:05]} Re1+ {[%emt 0:00:04]} 24. Kh2 {[%emt 0:00:03]} Re6 {[%emt 0:00:06]} 25. Nxc7 {[%emt 0:00:12]} Re7 {[%emt 0:00:02]} 26. Bxd6 {[%emt 0:00:14]} 1-0

[Event "European Online Club-ch-I 2021"]
[Site "Online"]
[Date "2021.03.27"]
[Round "3.12"]
[White "Devallee, Jeremie"]
[Black "Bashirli, Nail"]
[Result "0-1"]
[ECO "B03"]
[WhiteElo "2220"]
[BlackElo "2382"]
[Annotator "NA"]
[PlyCount "66"]
[EventDate "2021.03.27"]
[EventType "team-tourn"]
[EventCountry "NET"]
[SourceTitle "playchess.com"]
[Source "ChessBase"]
[SourceQuality "1"]
[TimeControl "900+5"]

1. e4 {[%emt 0:00:00]} Nf6 {[%emt 0:00:04]} 2. e5 {[%emt 0:00:03]} Nd5 {[%emt 0:00:02]} 3. c4 {[%emt 0:00:01]} Nb6 {[%emt 0:00:01]} 4. d4 {[%emt 0:00:02]} d6 {[%emt 0:00:01]} 5. exd6 {[%emt 0:00:01]} cxd6 {[%emt 0:00:02]} 6. Nc3 {[%emt 0:00:02]} g6 {[%emt 0:00:01]} 7. Be3 {[%emt 0:00:01]} Bg7 {[%emt 0:00:01]} 8. Rc1 {[%emt 0:00:03]} O-O {[%emt 0:00:01]} 9. b3 {[%emt 0:00:02]} Bf5 {[%emt 0:00:01]} 10. g4 {[%emt 0:00:18]} Bc8 {[%emt 0:00:08]} 11. h4 {[%emt 0:00:03]} Nc6 {[%emt 0:01:02]} 12. h5 {[%emt 0:00:09]} e5 {[%emt 0:00:06]} 13. d5 {[%emt 0:00:36]} Nd4 {[%emt 0:00:11]} 14. g5 {[%emt 0:02:44]} Bf5 {[%emt 0:01:27]} 15. Bd3 {[%emt 0:01:05]} Nd7 {[%emt 0:00:27]} 16. hxg6 {[%emt 0:01:18]} fxg6 {[%emt 0:00:31]} 17. Ne4 {[%emt 0:00:08]} Bxe4 {[%emt 0:02:42]} 18. Bxe4 {[%emt 0:00:05]} Nc5 {[%emt 0:00:03]} 19. Bb1 {[%emt 0:00:28]} Nf5 {[%emt 0:01:54]} 20. Qg4 {[%emt 0:03:10]} Nxe3 {[%emt 0:01:43]} 21. fxe3 {[%emt 0:00:03]} e4 {[%emt 0:00:34]} 22. Qh4 {[%emt 0:02:19]} Rf5 {[%emt 0:02:27]} 23. Qxh7+ {[%emt 0:00:10]} Kf7 {[%emt 0:00:03]} 24. b4 {[%emt 0:00:55]} Qxg5 {[%emt 0:00:50]} 25. bxc5 {[%emt 0:01:41]} Rh8 {[%emt 0:00:08]} 26. Qxh8 {[%emt 0:00:10]} Bxh8 {[%emt 0:00:03]} 27. Ne2 {[%emt 0:00:04]} Qg2 {[%emt 0:01:25]} 28. Rg1 {[%emt 0:00:47]} Qf2+ {[%emt 0:00:03]} 29. Kd2 {[%emt 0:00:04]} Rf3 {[%emt 0:00:01]} 30. Rcf1 {[%emt 0:00:31]} Qxe3+ {[%emt 0:00:04]} 31. Kd1 {[%emt 0:00:04]} dxc5 {[%emt 0:00:12]} 32. Bc2 {[%emt 0:00:21]} Bg7 {[%emt 0:00:13]} 33. Re1 {[%emt 0:00:11]} Bh6 {[%emt 0:00:03]} 0-1

[Event "European Online Club-ch-I 2021"]
[Site "Online"]
[Date "2021.03.27"]
[Round "3.13"]
[White "Javakhishvili, Lela"]
[Black "Bulockin, Martin"]
[Result "1-0"]
[ECO "A37"]
[WhiteElo "2473"]
[BlackElo "2315"]
[Annotator "ChessBase"]
[PlyCount "63"]
[EventDate "2021.03.27"]
[EventType "team-tourn"]
[EventCountry "NET"]
[SourceTitle "playchess.com"]
[Source "ChessBase"]
[SourceQuality "1"]
[TimeControl "900+5"]

1. Nf3 {[%emt 0:00:00]} c5 {[%emt 0:00:04]} 2. c4 {[%emt 0:00:05]} Nc6 {[%emt 0:00:04]} 3. g3 {[%emt 0:00:06]} g6 {[%emt 0:00:08]} 4. Bg2 {[%emt 0:00:02]} Bg7 {[%emt 0:00:05]} 5. Nc3 {[%emt 0:00:02]} e5 {[%emt 0:00:03]} 6. d3 {[%emt 0:00:05]} d6 {[%emt 0:00:05]} 7. Nd2 {[%emt 0:00:03]} Nge7 {[%emt 0:00:06]} 8. Nf1 {[%emt 0:00:02]} Nf5 {[%emt 0:00:06]} 9. a3 {[%emt 0:00:13]} O-O {[%emt 0:00:07]} 10. Rb1 {[%emt 0:00:04]} a5 {[%emt 0:00:04]} 11. Ne3 {[%emt 0:00:06]} Nxe3 {[%emt 0:00:06]} 12. Bxe3 {[%emt 0:00:07]} Be6 {[%emt 0:00:32]} 13. Qd2 {[%emt 0:00:22]} f5 {[%emt 0:00:25]} 14. Nd5 {[%emt 0:00:23]} Rb8 {[%emt 0:00:46]} 15. Bg5 {[%emt 0:00:08]} Qd7 {[%emt 0:00:15]} 16. b4 {[%emt 0:00:19]} axb4 {[%emt 0:01:04]} 17. axb4 {[%emt 0:00:04]} b5 {[%emt 0:01:12]} 18. cxb5 {[%emt 0:01:27]} Rxb5 {[%emt 0:00:13]} 19. O-O {[%emt 0:00:03]} Rfb8 {[%emt 0:00:37]} 20. Nf6+ {[%emt 0:00:08]} Bxf6 {[%emt 0:00:05]} 21. Bxf6 {[%emt 0:00:01]} Nxb4 {[%emt 0:00:24]} 22. f4 {[%emt 0:00:35]} exf4 {[%emt 0:00:41]} 23. Ba1 {[%emt 0:01:26]} d5 {[%emt 0:00:30]} 24. Be5 {[%emt 0:00:05]} Ra8 {[%emt 0:00:11]} 25. Qxf4 {[%emt 0:00:17]} Rba5 {[%emt 0:00:30]} 26. g4 {[%emt 0:00:49]} Nc6 {[%emt 0:00:18]} 27. gxf5 {[%emt 0:00:19]} Bxf5 {[%emt 0:00:21]} 28. Rb7 {[%emt 0:02:38]} Qxb7 {[%emt 0:02:59]} 29. Bxd5+ {[%emt 0:00:06]} Kf8 {[%emt 0:00:02]} 30. Qh6+ {[%emt 0:00:37]} Ke8 {[%emt 0:00:03]} 31. Rxf5 {[%emt 0:00:11]} Ra1+ {[%emt 0:03:50]} 32. Kg2 {[%emt 0:00:42]} 1-0

[Event "European Online Club-ch-I 2021"]
[Site "Online"]
[Date "2021.03.27"]
[Round "3.14"]
[White "Mladek, Richard"]
[Black "Bulmaga, Irina"]
[Result "0-1"]
[ECO "B53"]
[WhiteElo "2291"]
[BlackElo "2440"]
[Annotator "NA"]
[PlyCount "84"]
[EventDate "2021.03.27"]
[EventType "team-tourn"]
[EventCountry "NET"]
[SourceTitle "playchess.com"]
[Source "ChessBase"]
[SourceQuality "1"]
[TimeControl "900+5"]

1. e4 {[%emt 0:00:00]} c5 {[%emt 0:00:03]} 2. Nf3 {[%emt 0:00:02]} d6 {[%emt 0:00:01]} 3. d4 {[%emt 0:00:02]} cxd4 {[%emt 0:00:00]} 4. Qxd4 {[%emt 0:00:04]} Nf6 {[%emt 0:00:01]} 5. Nc3 {[%emt 0:00:03]} Nc6 {[%emt 0:00:03]} 6. Bb5 {[%emt 0:00:02]} e5 {[%emt 0:00:02]} 7. Qd3 {[%emt 0:00:47]} h6 {[%emt 0:00:03]} 8. O-O {[%emt 0:00:53]} a6 {[%emt 0:00:40]} 9. Bc4 {[%emt 0:00:28]} Be7 {[%emt 0:00:17]} 10. a4 {[%emt 0:00:32]} O-O {[%emt 0:00:21]} 11. h3 {[%emt 0:00:34]} Nb4 {[%emt 0:00:42]} 12. Qd1 {[%emt 0:01:20]} b6 {[%emt 0:00:27]} 13. Re1 {[%emt 0:00:49]} Qc7 {[%emt 0:00:28]} 14. Bb3 {[%emt 0:00:08]} Be6 {[%emt 0:01:16]} 15. Nh4 {[%emt 0:02:42]} d5 {[%emt 0:03:19]} 16. exd5 {[%emt 0:00:44]} Nfxd5 {[%emt 0:00:14]} 17. Nxd5 {[%emt 0:00:36]} Nxd5 {[%emt 0:00:35]} 18. Nf3 {[%emt 0:01:01]} Rfd8 {[%emt 0:01:01]} 19. Qe2 {[%emt 0:00:07]} f6 {[%emt 0:00:12]} 20. Nd4 {[%emt 0:00:17]} Bf7 {[%emt 0:00:02]} 21. Nf5 {[%emt 0:00:04]} Bf8 {[%emt 0:00:24]} 22. Qg4 {[%emt 0:00:51]} Kh8 {[%emt 0:00:20]} 23. Qf3 {[%emt 0:01:46]} Nb4 {[%emt 0:01:03]} 24. Be3 {[%emt 0:01:52]} Bxb3 {[%emt 0:00:20]} 25. cxb3 {[%emt 0:00:03]} Bc5 {[%emt 0:02:29]} 26. Bxc5 {[%emt 0:00:31]} bxc5 {[%emt 0:00:26]} 27. Rad1 {[%emt 0:00:04]} Nc2 {[%emt 0:00:10]} 28. Rf1 {[%emt 0:00:38]} Nd4 {[%emt 0:00:05]} 29. Qg4 {[%emt 0:00:03]} Rab8 {[%emt 0:00:10]} 30. Nh4 {[%emt 0:00:02]} Rxb3 {[%emt 0:00:10]} 31. Ng6+ {[%emt 0:00:02]} Kg8 {[%emt 0:00:05]} 32. f4 {[%emt 0:00:01]} Rg3 {[%emt 0:00:40]} 33. Qh5 {[%emt 0:00:19]} Qb7 {[%emt 0:00:19]} 34. Rd2 {[%emt 0:00:10]} Qf7 {[%emt 0:00:50]} 35. f5 {[%emt 0:00:07]} e4 {[%emt 0:00:02]} 36. Kh2 {[%emt 0:00:03]} Rg5 {[%emt 0:00:05]} 37. Qh4 {[%emt 0:00:02]} e3 {[%emt 0:00:06]} 38. Rd3 {[%emt 0:00:02]} e2 {[%emt 0:00:11]} 39. Rf4 {[%emt 0:00:02]} Re8 {[%emt 0:00:10]} 40. Re4 {[%emt 0:00:10]} Nxf5 {[%emt 0:00:13]} 41. Rxe8+ {[%emt 0:00:11]} Qxe8 {[%emt 0:00:00]} 42. Qc4+ {[%emt 0:00:05]} Kh7 {[%emt 0:00:02]} 0-1

[Event "European Online Club-ch-I 2021"]
[Site "Online"]
[Date "2021.03.27"]
[Round "3.15"]
[White "Atalik, Ekaterina"]
[Black "Sprenar, Petr"]
[Result "0-1"]
[ECO "D35"]
[WhiteElo "2430"]
[BlackElo "2259"]
[Annotator "NA"]
[PlyCount "108"]
[EventDate "2021.03.27"]
[EventType "team-tourn"]
[EventCountry "NET"]
[SourceTitle "playchess.com"]
[Source "ChessBase"]
[SourceQuality "1"]
[TimeControl "900+5"]

1. d4 {[%emt 0:00:00]} d5 {[%emt 0:00:03]} 2. c4 {[%emt 0:00:03]} e6 {[%emt 0:00:01]} 3. Nc3 {[%emt 0:00:03]} Nf6 {[%emt 0:00:16]} 4. cxd5 {[%emt 0:00:19]} exd5 {[%emt 0:00:01]} 5. Bg5 {[%emt 0:00:02]} c6 {[%emt 0:00:01]} 6. e3 {[%emt 0:00:02]} Be7 {[%emt 0:00:02]} 7. Bd3 {[%emt 0:00:03]} Nbd7 {[%emt 0:00:01]} 8. Nge2 {[%emt 0:00:48]} h6 {[%emt 0:00:13]} 9. Bh4 {[%emt 0:00:11]} Nh5 {[%emt 0:01:16]} 10. Bxe7 {[%emt 0:00:03]} Qxe7 {[%emt 0:00:00]} 11. O-O {[%emt 0:00:14]} O-O {[%emt 0:00:08]} 12. a3 {[%emt 0:00:08]} a5 {[%emt 0:00:06]} 13. Rc1 {[%emt 0:00:04]} Nb6 {[%emt 0:01:04]} 14. Ng3 {[%emt 0:00:22]} Nxg3 {[%emt 0:00:08]} 15. hxg3 {[%emt 0:00:01]} a4 {[%emt 0:00:09]} 16. Qf3 {[%emt 0:01:23]} Be6 {[%emt 0:00:31]} 17. Qf4 {[%emt 0:00:06]} Rfc8 {[%emt 0:01:14]} 18. Rfe1 {[%emt 0:00:07]} Qc7 {[%emt 0:01:49]} 19. Qh4 {[%emt 0:00:36]} Qd8 {[%emt 0:00:12]} 20. Qxd8+ {[%emt 0:02:22]} Rxd8 {[%emt 0:00:03]} 21. f3 {[%emt 0:00:03]} f5 {[%emt 0:00:48]} 22. Kf2 {[%emt 0:00:10]} Nc4 {[%emt 0:01:10]} 23. Bxc4 {[%emt 0:00:03]} dxc4 {[%emt 0:00:00]} 24. Red1 {[%emt 0:00:40]} b5 {[%emt 0:00:56]} 25. e4 {[%emt 0:00:07]} fxe4 {[%emt 0:00:18]} 26. fxe4 {[%emt 0:00:06]} Bg4 {[%emt 0:00:51]} 27. Rd2 {[%emt 0:00:04]} Rd7 {[%emt 0:00:54]} 28. Ke3 {[%emt 0:00:10]} Rad8 {[%emt 0:00:50]} 29. d5 {[%emt 0:01:41]} Be6 {[%emt 0:01:00]} 30. Rcd1 {[%emt 0:00:19]} cxd5 {[%emt 0:00:37]} 31. Nxd5 {[%emt 0:00:03]} Bg4 {[%emt 0:00:39]} 32. Ne7+ {[%emt 0:00:41]} Kf7 {[%emt 0:00:03]} 33. Rxd7 {[%emt 0:00:05]} Rxd7 {[%emt 0:00:03]} 34. Rxd7 {[%emt 0:00:02]} Bxd7 {[%emt 0:00:00]} 35. Nd5 {[%emt 0:00:03]} Ke6 {[%emt 0:00:23]} 36. Kd4 {[%emt 0:00:08]} g5 {[%emt 0:01:04]} 37. Ne3 {[%emt 0:01:12]} h5 {[%emt 0:00:46]} 38. Nd5 {[%emt 0:00:10]} Bc6 {[%emt 0:00:07]} 39. Kc5 {[%emt 0:00:05]} Bb7 {[%emt 0:00:13]} 40. Kxb5 {[%emt 0:02:14]} Ke5 {[%emt 0:00:06]} 41. Nc3 {[%emt 0:00:01]} h4 {[%emt 0:00:07]} 42. gxh4 {[%emt 0:00:05]} gxh4 {[%emt 0:00:04]} 43. Kxa4 {[%emt 0:01:25]} Kf4 {[%emt 0:00:12]} 44. Kb5 {[%emt 0:00:05]} Kg3 {[%emt 0:00:05]} 45. Kb6 {[%emt 0:01:44]} Kxg2 {[%emt 0:00:01]} 46. Kxb7 {[%emt 0:00:13]} h3 {[%emt 0:00:01]} 47. Nd5 {[%emt 0:00:09]} h2 {[%emt 0:00:06]} 48. Ne3+ {[%emt 0:00:03]} Kf3 {[%emt 0:00:07]} 49. Nxc4 {[%emt 0:00:05]} h1=Q {[%emt 0:00:04]} 50. Nd6 {[%emt 0:00:06]} Kf4 {[%emt 0:00:06]} 51. Kc6 {[%emt 0:00:04]} Qc1+ {[%emt 0:00:03]} 52. Kd7 {[%emt 0:00:02]} Qxb2 {[%emt 0:00:03]} 53. a4 {[%emt 0:00:03]} Qb4 {[%emt 0:00:06]} 54. Ke6 {[%emt 0:00:02]} Qxa4 {[%emt 0:00:04]} 0-1

[Event "European Online Club-ch-I 2021"]
[Site "Online"]
[Date "2021.03.27"]
[Round "3.16"]
[White "Stinka, Jakub"]
[Black "Daulyte-Cornette, Deimante"]
[Result "1-0"]
[ECO "E12"]
[WhiteElo "2232"]
[BlackElo "2387"]
[Annotator "NA"]
[PlyCount "111"]
[EventDate "2021.03.27"]
[EventType "team-tourn"]
[EventCountry "NET"]
[SourceTitle "playchess.com"]
[Source "ChessBase"]
[SourceQuality "1"]
[TimeControl "900+5"]

1. d4 {[%emt 0:00:00]} Nf6 {[%emt 0:00:04]} 2. c4 {[%emt 0:00:08]} e6 {[%emt 0:00:03]} 3. Nf3 {[%emt 0:00:03]} b6 {[%emt 0:00:03]} 4. a3 {[%emt 0:00:07]} Bb7 {[%emt 0:00:08]} 5. Nc3 {[%emt 0:00:02]} Ne4 {[%emt 0:00:03]} 6. Nxe4 {[%emt 0:00:38]} Bxe4 {[%emt 0:00:00]} 7. Nd2 {[%emt 0:00:04]} Bg6 {[%emt 0:00:04]} 8. g3 {[%emt 0:00:12]} d5 {[%emt 0:00:41]} 9. Bg2 {[%emt 0:00:13]} c6 {[%emt 0:00:05]} 10. O-O {[%emt 0:00:14]} Be7 {[%emt 0:00:17]} 11. e4 {[%emt 0:00:20]} dxe4 {[%emt 0:00:12]} 12. Nxe4 {[%emt 0:00:01]} Nd7 {[%emt 0:00:28]} 13. h4 {[%emt 0:01:36]} Rc8 {[%emt 0:02:07]} 14. h5 {[%emt 0:01:33]} Bf5 {[%emt 0:00:52]} 15. Bf4 {[%emt 0:00:39]} h6 {[%emt 0:00:29]} 16. Nd6+ {[%emt 0:01:17]} Bxd6 {[%emt 0:00:05]} 17. Bxd6 {[%emt 0:00:02]} Nf6 {[%emt 0:00:04]} 18. c5 {[%emt 0:00:19]} Ne4 {[%emt 0:01:10]} 19. Bxe4 {[%emt 0:00:37]} Bxe4 {[%emt 0:00:00]} 20. Qg4 {[%emt 0:00:01]} Bf5 {[%emt 0:00:41]} 21. Qxg7 {[%emt 0:00:23]} Rh7 {[%emt 0:00:01]} 22. Qe5 {[%emt 0:01:14]} Qg5 {[%emt 0:00:20]} 23. Rfe1 {[%emt 0:01:29]} Qxh5 {[%emt 0:00:35]} 24. d5 {[%emt 0:00:46]} Bg4 {[%emt 0:04:07]} 25. Qxh5 {[%emt 0:00:32]} Bxh5 {[%emt 0:00:02]} 26. dxe6 {[%emt 0:00:01]} fxe6 {[%emt 0:00:02]} 27. Rxe6+ {[%emt 0:00:01]} Kd7 {[%emt 0:00:02]} 28. Rae1 {[%emt 0:00:26]} Re8 {[%emt 0:00:27]} 29. Rxe8 {[%emt 0:00:35]} Bxe8 {[%emt 0:00:00]} 30. f4 {[%emt 0:00:33]} Bh5 {[%emt 0:00:25]} 31. Kf2 {[%emt 0:00:15]} Bg4 {[%emt 0:00:13]} 32. Re5 {[%emt 0:00:21]} Rf7 {[%emt 0:01:17]} 33. Ke3 {[%emt 0:01:10]} Bf5 {[%emt 0:01:58]} 34. Kf3 {[%emt 0:00:56]} h5 {[%emt 0:00:05]} 35. b4 {[%emt 0:00:06]} Bg4+ {[%emt 0:00:11]} 36. Ke4 {[%emt 0:00:13]} Rh7 {[%emt 0:00:06]} 37. f5 {[%emt 0:00:22]} a5 {[%emt 0:00:10]} 38. Kf4 {[%emt 0:00:20]} axb4 {[%emt 0:00:04]} 39. axb4 {[%emt 0:00:02]} bxc5 {[%emt 0:00:02]} 40. Bxc5 {[%emt 0:00:03]} Bd1 {[%emt 0:00:19]} 41. Re3 {[%emt 0:00:13]} Bg4 {[%emt 0:00:07]} 42. Kg5 {[%emt 0:00:07]} Rg7+ {[%emt 0:00:04]} 43. Kf6 {[%emt 0:00:02]} Rh7 {[%emt 0:00:02]} 44. Kg6 {[%emt 0:00:03]} Rh8 {[%emt 0:00:02]} 45. f6 {[%emt 0:00:01]} Be6 {[%emt 0:00:06]} 46. Rxe6 {[%emt 0:00:12]} Kxe6 {[%emt 0:00:08]} 47. f7 {[%emt 0:00:01]} h4 {[%emt 0:00:14]} 48. gxh4 {[%emt 0:00:08]} Rxh4 {[%emt 0:00:03]} 49. f8=Q {[%emt 0:00:04]} Rg4+ {[%emt 0:00:01]} 50. Kh5 {[%emt 0:00:03]} Re4 {[%emt 0:00:02]} 51. Qd6+ {[%emt 0:00:08]} Kf5 {[%emt 0:00:02]} 52. Qxc6 {[%emt 0:00:08]} Re5 {[%emt 0:00:06]} 53. b5 {[%emt 0:00:10]} Kf4+ {[%emt 0:00:04]} 54. Kh4 {[%emt 0:00:02]} Re2 {[%emt 0:00:02]} 55. Bd6+ {[%emt 0:00:04]} Kf5 {[%emt 0:00:03]} 56. Qf3+ {[%emt 0:00:02]} 1-0